fUST/lending_fUST_20250127
["ID","MTS","AMOUNT","RATE_DAILY","PERIOD"]
[350538491,1737953348215,-170.56,0.00016983,2]
[350538492,1737953348239,-385.05835262,0.00016983,2]
[350538493,1737953348289,-523.79164738,0.00016983,2]
[350538494,1737953348314,-500.0,0.00016983,2]
[350538495,1737953348337,-500.0,0.00016983,2]
[350538496,1737953348365,-500.0,0.00016983,2]
[350538497,1737953348389,-500.0,0.00016983,2]
[350538498,1737953348411,-500.0,0.00016983,2]
[350538499,1737953348432,-500.0,0.00016983,2]
[350538500,1737953348455,-542.4161767,0.00016983,2]
[350538501,1737953348476,-615.91086953,0.00016983,2]
[350538502,1737953348498,-500.0,0.00016983,2]
[350538503,1737953348521,-500.0,0.00016983,2]
[350538504,1737953348542,-500.0,0.00016983,2]
[350538505,1737953348564,-500.0,0.00016983,2]
[350538506,1737953348586,-500.0,0.00016983,2]
[350538507,1737953348614,-500.0,0.00016983,2]
[350538508,1737953348635,-204.44418722,0.00016984,2]
[350538509,1737953348658,-500.0,0.00016984,2]
[350538510,1737953348680,-2267.21,0.00016984,2]
[350538511,1737953348703,-500.0,0.00016984,2]
[350538512,1737953348726,-500.0,0.00016984,2]
[350538513,1737953348750,-973.14,0.00016984,2]
[350538514,1737953348773,-500.0,0.00016984,2]
[350538515,1737953348906,-500.0,0.00016984,2]
[350538516,1737953348935,-500.0,0.00016984,2]
[350538517,1737953348958,-500.0,0.00016986,2]
[350538518,1737953348984,-500.0,0.00017119,2]
[350538519,1737953349008,-500.0,0.0001712,2]
[350538520,1737953349032,-500.0,0.0001712,2]
[350538521,1737953349055,-836.07,0.0001712,2]
[350538522,1737953349079,-908.85,0.0001712,2]
[350538523,1737953349105,-500.0,0.0001712,2]
[350538524,1737953349127,-500.0,0.0001712,2]
[350538525,1737953349149,-500.0,0.0001712,2]
[350538526,1737953349171,-500.0,0.0001712,2]
[350538527,1737953349193,-500.0,0.0001712,2]
[350538528,1737953349214,-500.0,0.0001712,2]
[350538529,1737953349236,-500.0,0.0001712,2]
[350538530,1737953349260,-500.0,0.0001712,2]
[350538531,1737953349282,-500.0,0.0001712,2]
[350538532,1737953349305,-500.0,0.0001712,2]
[350538533,1737953349327,-500.0,0.0001712,2]
[350538534,1737953349350,-500.0,0.0001712,2]
[350538535,1737953349373,-500.0,0.00017121,2]
[350538536,1737953349396,-2267.21,0.00017121,2]
[350538537,1737953349419,-500.0,0.00017121,2]
[350538538,1737953349441,-500.0,0.00017121,2]
[350538539,1737953349465,-973.14,0.00017121,2]
[350538540,1737953349486,-500.0,0.00017121,2]
[350538541,1737953349508,-500.0,0.00017121,2]
[350538542,1737953349530,-500.0,0.00017121,2]
[350538543,1737953349552,-500.0,0.00017256,2]
[350538544,1737953349575,-500.0,0.00017257,2]
[350538545,1737953349599,-500.0,0.00017257,2]
[350538546,1737953349621,-836.07,0.00017257,2]
[350538547,1737953349644,-908.85,0.00017257,2]
[350538548,1737953349666,-500.0,0.00017257,2]
[350538549,1737953349689,-500.0,0.00017257,2]
[350538550,1737953349711,-500.0,0.00017257,2]
[350538551,1737953349734,-500.0,0.00017257,2]
[350538552,1737953349757,-500.0,0.00017257,2]
[350538553,1737953349778,-500.0,0.00017257,2]
[350538554,1737953349799,-500.0,0.00017257,2]
[350538555,1737953349821,-500.0,0.00017257,2]
[350538556,1737953349842,-500.0,0.00017257,2]
[350538557,1737953349869,-500.0,0.00017257,2]
[350538558,1737953349891,-485.44,0.00017257,2]
[350538559,1737953349919,-500.0,0.00017258,2]
[350538560,1737953349941,-2267.21,0.00017258,2]
[350538561,1737953349962,-500.0,0.00017258,2]
[350538562,1737953349983,-169.8,0.00017258,2]
[350538563,1737953350008,-973.14,0.00017258,2]
[350538564,1737953350031,-500.0,0.00017258,2]
[350538565,1737953350053,-278.0,0.00017258,2]
[350538566,1737953350075,-500.0,0.00017258,2]
[350538567,1737953350099,-500.0,0.00017393,2]
[350538568,1737953350120,-500.0,0.00017394,2]
[350538569,1737953350141,-500.0,0.00017394,2]
[350538570,1737953350162,-836.07,0.00017394,2]
[350538571,1737953350184,-908.85,0.00017394,2]
[350538572,1737953350205,-500.0,0.00017394,2]
[350538573,1737953350225,-500.0,0.00017394,2]
[350538574,1737953350245,-500.0,0.00017394,2]
[350538575,1737953350266,-500.0,0.00017394,2]
[350538576,1737953350286,-500.0,0.00017394,2]
[350538577,1737953350306,-500.0,0.00017394,2]
[350538578,1737953350326,-500.0,0.00017394,2]
[350538579,1737953350349,-500.0,0.00017394,2]
[350538580,1737953350371,-500.0,0.00017395,2]
[350538581,1737953350391,-2267.21,0.00017395,2]
[350538582,1737953350412,-500.0,0.00017395,2]
[350538583,1737953350433,-973.14,0.00017395,2]
[350538584,1737953350454,-336.9,0.00017395,2]
[350538585,1737953350475,-500.0,0.00017395,2]
[350538586,1737953350497,-500.0,0.0001753,2]
[350538587,1737953350518,-500.0,0.00017531,2]
[350538588,1737953350540,-500.0,0.00017531,2]
[350538589,1737953350565,-836.07,0.00017531,2]
[350538590,1737953350586,-908.85,0.00017531,2]
[350538591,1737953350609,-500.0,0.00017531,2]
[350538592,1737953350630,-500.0,0.00017531,2]
[350538593,1737953350651,-500.0,0.00017531,2]
[350538594,1737953350674,-500.0,0.00017531,2]
[350538595,1737953350696,-500.0,0.00017531,2]
[350538596,1737953350717,-607.87,0.00017531,2]
[350538597,1737953350738,-527.69,0.00017531,2]
[350538598,1737953350760,-500.0,0.00017531,2]
[350538599,1737953350782,-500.0,0.00017532,2]
[350538600,1737953350802,-2267.21,0.00017532,2]
[350538601,1737953350824,-402.6,0.00017532,2]
[350538602,1737953350846,-973.14,0.00017532,2]
[350538603,1737953350867,-615.4,0.00017532,2]
[350538604,1737953350890,-500.0,0.00017667,2]
[350538605,1737953350915,-500.0,0.00017668,2]
[350538606,1737953350936,-500.0,0.00017668,2]
[350538607,1737953350960,-836.07,0.00017668,2]
[350538608,1737953350983,-908.85,0.00017668,2]
[350538609,1737953351004,-500.0,0.00017668,2]
[350538610,1737953351027,-500.0,0.00017668,2]
[350538611,1737953351048,-500.0,0.00017668,2]
[350538612,1737953351072,-500.0,0.00017668,2]
[350538613,1737953351093,-500.0,0.00017668,2]
[350538614,1737953351116,-559.2,0.00017668,2]
[350538615,1737953351138,-500.0,0.00017669,2]
[350538616,1737953351159,-2267.21,0.00017669,2]
[350538617,1737953351180,-973.14,0.00017669,2]
[350538618,1737953351202,-500.0,0.00017804,2]
[350538619,1737953351222,-314.62,0.00017805,2]
[350538620,1737953351243,-500.0,0.00017805,2]
[350538621,1737953351264,-836.07,0.00017805,2]
[350538622,1737953351286,-908.85,0.00017805,2]
[350538623,1737953351308,-500.0,0.00017805,2]
[350538624,1737953351329,-500.0,0.00017805,2]
[350538625,1737953351351,-251.01,0.00017805,2]
[350538626,1737953351374,-500.0,0.00017805,2]
[350538627,1737953351395,-500.0,0.00017805,2]
[350538628,1737953351417,-500.0,0.00017806,2]
[350538629,1737953351437,-2267.21,0.00017806,2]
[350538630,1737953351458,-973.14,0.00017806,2]
[350538631,1737953351480,-500.0,0.00017941,2]
[350538632,1737953351502,-158.97,0.00017942,2]
[350538633,1737953351524,-836.07,0.00017942,2]
[350538634,1737953351546,-908.85,0.00017942,2]
[350538635,1737953351567,-500.0,0.00017942,2]
[350538636,1737953351587,-175.48,0.00017942,2]
[350538637,1737953351611,-500.0,0.00017942,2]
[350538638,1737953351632,-500.0,0.00017942,2]
[350538639,1737953351654,-500.0,0.00017943,2]
[350538640,1737953351676,-2267.21,0.00017943,2]
[350538641,1737953351697,-973.14,0.00017943,2]
[350538642,1737953351719,-500.0,0.00018078,2]
[350538643,1737953351740,-836.07,0.00018079,2]
[350538644,1737953351761,-908.85,0.00018079,2]
[350538645,1737953351782,-500.0,0.00018079,2]
[350538646,1737953351804,-500.0,0.00018079,2]
[350538647,1737953351825,-500.0,0.00018079,2]
[350538648,1737953351849,-500.0,0.0001808,2]
[350538649,1737953351870,-2267.21,0.0001808,2]
[350538650,1737953351891,-973.14,0.0001808,2]
[350538651,1737953351915,-270.37393433,0.00018215,2]
[350538652,1737953352040,-500.0,0.00018215,2]
[350538653,1737953352062,-836.07,0.00018216,2]
[350538654,1737953352083,-908.85,0.00018216,2]
[350538655,1737953352108,-500.0,0.00018216,2]
[350538656,1737953352130,-500.0,0.00018216,2]
[350538657,1737953352151,-344.13,0.00018216,2]
[350538658,1737953352173,-500.0,0.00018217,2]
[350538659,1737953352194,-2267.21,0.00018217,2]
[350538660,1737953352219,-973.14,0.00018217,2]
[350538661,1737953352239,-161.50234174,0.00018351,2]
[350538662,1737953352260,-500.0,0.00018352,2]
[350538663,1737953352282,-836.07,0.00018353,2]
[350538664,1737953352304,-908.85,0.00018353,2]
[350538665,1737953352325,-500.0,0.00018353,2]
[350538666,1737953352348,-500.0,0.00018353,2]
[350538667,1737953352371,-500.0,0.00018354,2]
[350538668,1737953352391,-2267.21,0.00018354,2]
[350538669,1737953352414,-973.14,0.00018354,2]
[350538670,1737953352434,-176.579,0.00018446,2]
[350538671,1737953352455,-500.0,0.00018489,2]
[350538672,1737953352478,-836.07,0.0001849,2]
[350538673,1737953352500,-908.85,0.0001849,2]
[350538674,1737953352522,-500.0,0.0001849,2]
[350538675,1737953352544,-500.0,0.0001849,2]
[350538676,1737953352566,-500.0,0.00018491,2]
[350538677,1737953352587,-2267.21,0.00018491,2]
[350538678,1737953352612,-973.14,0.00018491,2]
[350538679,1737953352633,-150.68,0.000186,2]
[350538680,1737953352653,-150.68,0.000186,2]
[350538681,1737953352676,-500.0,0.00018626,2]
[350538682,1737953352697,-836.07,0.00018627,2]
[350538683,1737953352719,-908.85,0.00018627,2]
[350538684,1737953352740,-355.95,0.00018627,2]
[350538685,1737953352762,-500.0,0.00018627,2]
[350538686,1737953352783,-500.0,0.00018628,2]
[350538687,1737953352804,-2267.21,0.00018628,2]
[350538688,1737953352826,-973.14,0.00018628,2]
[350538689,1737953352848,-637.57,0.00018763,2]
[350538690,1737953352870,-836.07,0.00018764,2]
[350538691,1737953352892,-908.85,0.00018764,2]
[350538692,1737953352918,-500.0,0.00018764,2]
[350538693,1737953352943,-500.0,0.00018765,2]
[350538694,1737953352964,-2267.21,0.00018765,2]
[350538695,1737953352987,-973.14,0.00018765,2]
[350538696,1737953353009,-836.07,0.00018901,2]
[350538697,1737953353031,-908.85,0.00018901,2]
[350538698,1737953353052,-500.0,0.00018901,2]
[350538699,1737953353074,-500.0,0.00018902,2]
[350538700,1737953353094,-2267.21,0.00018902,2]
[350538701,1737953353119,-973.14,0.00018902,2]
[350538702,1737953353141,-836.07,0.00019038,2]
[350538703,1737953353162,-908.85,0.00019038,2]
[350538704,1737953353183,-500.0,0.00019038,2]
[350538705,1737953353205,-500.0,0.00019039,2]
[350538706,1737953353226,-2267.21,0.00019039,2]
[350538707,1737953353248,-973.14,0.00019039,2]
[350538708,1737953353269,-836.07,0.00019175,2]
[350538709,1737953353292,-908.85,0.00019175,2]
[350538710,1737953353313,-372.96,0.00019175,2]
[350538711,1737953353336,-500.0,0.00019176,2]
[350538712,1737953353359,-2267.21,0.00019176,2]
[350538713,1737953353380,-973.14,0.00019176,2]
[350538714,1737953353401,-836.07,0.00019312,2]
[350538715,1737953353423,-908.85,0.00019312,2]
[350538716,1737953353446,-500.0,0.00019313,2]
[350538717,1737953353469,-2267.21,0.00019313,2]
[350538718,1737953353495,-973.14,0.00019313,2]
[350538719,1737953353520,-1036.18,0.000194,2]
[350538720,1737953353545,-836.07,0.00019449,2]
[350538721,1737953353569,-908.85,0.00019449,2]
[350538722,1737953353595,-500.0,0.0001945,2]
[350538723,1737953353622,-2267.21,0.0001945,2]
[350538724,1737953353648,-973.14,0.0001945,2]
[350538725,1737953353674,-178.65782213,0.00019513,2]
[350538726,1737953353700,-836.07,0.00019586,2]
[350538727,1737953353725,-908.85,0.00019586,2]
[350538728,1737953353752,-415.6,0.00019587,2]
[350538729,1737953353777,-2267.21,0.00019587,2]
[350538730,1737953353802,-973.14,0.00019587,2]
[350538731,1737953353827,-836.07,0.00019723,2]
[350538732,1737953353854,-908.85,0.00019723,2]
[350538733,1737953353879,-2267.21,0.00019724,2]
[350538734,1737953353909,-973.14,0.00019724,2]
[350538735,1737953353937,-836.1,0.0001986,2]
[350538736,1737953353964,-909.06,0.0001986,2]
[350538737,1737953353988,-2267.21,0.00019861,2]
[350538738,1737953354012,-973.15882794,0.00019861,2]
[350538739,1737953354036,-300.0,0.000199,8]
[350538740,1737953354062,-160.0,0.0002,3]
[350538741,1737953354086,-160.0,0.0002,3]
[350538742,1737953354111,-500.0,0.00020164,2]
[350538743,1737953354135,-2876.46392309,0.000203,2]
[350538744,1737953354158,-2876.46392308,0.000203,2]
[350538745,1737953354182,-2876.46392308,0.000203,2]
[350538746,1737953354207,-2876.46392308,0.000203,2]
[350538747,1737953354231,-2437.30320562,0.000203,2]
[350538748,1737953354252,-2437.30320561,0.000203,2]
[350538749,1737953354273,-2437.30320561,0.000203,2]
[350538750,1737953354294,-2437.30320561,0.000203,2]
[350538751,1737953354316,-791.78899268,0.00020426,2]
[350538752,1737953354342,-324.745462,0.00020447,2]
[350538753,1737953362251,-300.0,0.000214,9]
[350538754,1737953362274,-395.0,0.00021515,2]
[350538755,1737953362295,-50.78,0.000216,3]
[350538756,1737953413413,527.85932845,0.000189,2]
[350538812,1737953432444,-193.011,0.00021515,2]
[350538814,1737953432454,-100.22,0.000216,3]
[350538816,1737953432463,-342.0947933,0.00021778,2]
[350538818,1737953432473,-6647.21064313,0.00021876,2]
[350538820,1737953432484,-574.9172992,0.00021876,2]
[350538822,1737953432494,-300.0,0.00021899,2]
[350538824,1737953432504,-152.36,0.000219,31]
[350538826,1737953432513,-152.36,0.000219,31]
[350538828,1737953432524,-152.36,0.000219,31]
[350538830,1737953432533,-127.80845499,0.000219,31]
[350538833,1737953432545,-24.55154501,0.000219,31]
[350538835,1737953432555,-152.36,0.000219,31]
[350538837,1737953432564,-152.36,0.000219,31]
[350538839,1737953432574,-152.36,0.000219,31]
[350538841,1737953432583,-6187.20994594,0.00021994,2]
[350538843,1737953432595,-515.10465778,0.00021994,2]
[350538845,1737953432606,-519.81333861,0.00021994,2]
[350538847,1737953432616,-125.32264604,0.00022,10]
[350539230,1737953438203,-25.67735396,0.00022,10]
[350539232,1737953438213,-309.41913,0.00022052,2]
[350539234,1737953438222,-160.0,0.00022264,2]
[350539235,1737953438232,-265.4392864,0.00022295,2]
[350539238,1737953438242,-178.65782213,0.00022417,2]
[350539240,1737953438251,-151.0,0.00022496,7]
[350539242,1737953438261,-151.0,0.00022496,7]
[350539244,1737953438270,-151.0,0.00022496,7]
[350539245,1737953438279,-151.0,0.00022496,7]
[350539248,1737953438288,-151.0,0.00022516,7]
[350539250,1737953438298,-151.0,0.00022516,7]
[350539251,1737953438307,-151.0,0.00022516,7]
[350539253,1737953438316,-151.0,0.00022516,7]
[350539255,1737953438325,-151.0,0.00022516,7]
[350539257,1737953438335,-151.0,0.00022516,7]
[350539259,1737953438344,-151.0,0.00022516,7]
[350539261,1737953438353,-158.510942,0.00022516,7]
[350539262,1737953438362,-151.0,0.00022516,7]
[350539263,1737953438371,-151.0,0.00022516,7]
[350539265,1737953438380,-151.0,0.00022516,7]
[350539267,1737953438389,-151.0,0.00022516,7]
[350539269,1737953438398,-151.0,0.00022516,7]
[350539271,1737953438407,-151.0,0.00022516,7]
[350539273,1737953438416,-151.0,0.00022516,7]
[350539275,1737953438425,-151.0,0.00022516,7]
[350539276,1737953438435,-151.0,0.00022516,7]
[350539278,1737953438444,-151.0,0.00022516,7]
[350539279,1737953438453,-151.0,0.00022516,7]
[350539280,1737953438462,-225.086056,0.00022516,7]
[350539282,1737953438471,-151.0,0.00022516,7]
[350539284,1737953438479,-8805.77544697,0.00022517,5]
[350539286,1737953438491,-6561.79765286,0.00022517,5]
[350539288,1737953438502,-2152.48942878,0.00022517,5]
[350539290,1737953438511,-1226.69939193,0.00022517,5]
[350539292,1737953438520,-160.0,0.00022517,7]
[350539294,1737953438530,-1500.99754929,0.00022517,61]
[350539295,1737953438541,-684.29268817,0.00022517,61]
[350539296,1737953438553,-63832.98709965,0.00022517,61]
[350539297,1737953438567,-14457.36455187,0.00022517,61]
[350539298,1737953438579,-12736.46300026,0.00022517,61]
[350539299,1737953438591,-7242.12401965,0.00022517,61]
[350539300,1737953438602,-9433.30493159,0.00022517,61]
[350539315,1737953440311,-273.4998419,0.00022517,61]
[350539321,1737953440366,-597.95323649,0.00022517,61]
[350539323,1737953440379,-1345.81270731,0.00022517,61]
[350539324,1737953440390,-4096.55185215,0.00022517,61]
[350539325,1737953440522,-46.54670633,0.00022517,61]
[350539351,1737953443327,-25860.39075046,0.00022517,61]
[350539352,1737953443388,-4491.50148675,0.00022517,61]
[350539353,1737953443400,-40200.00000001,0.00022517,61]
[350539354,1737953443411,-5026.0,0.00022517,61]
[350539355,1737953443421,-933.507,0.00022517,61]
[350539356,1737953443434,-907.55901549,0.00022517,61]
[350539357,1737953443453,-7171.54393501,0.00022517,61]
[350539420,1737953446676,-458.04262499,0.00022517,61]
[350539456,1737953449138,-1179.94412736,0.00022517,61]
[350539457,1737953449201,-40200.0,0.00022517,61]
[350539458,1737953449212,-1211.74154705,0.00022517,61]
[350539459,1737953463357,3174.0,0.0002,3]
[350539460,1737953463745,3174.0,0.0002,3]
[350539461,1737953464119,3174.0,0.0002,3]
[350539462,1737953464463,3174.0,0.0002,3]
[350539463,1737953464804,3174.0,0.0002,3]
[350539464,1737953465140,3174.0,0.0002,3]
[350539465,1737953484783,932.56,0.0002,2]
[350539466,1737953531435,500.0,0.0001671,2]
[350539468,1737953569876,164.640378,0.00013699,2]
[350539470,1737953708444,340.448068,0.00013973,2]
[350539474,1737954434263,-222.50179394,0.00016375,2]
[350539475,1737954434285,-222.50179394,0.0001654,2]
[350539476,1737954434307,-500.0,0.00016708,2]
[350539477,1737954434330,-500.0,0.00016709,2]
[350539478,1737954434350,-327.90810528,0.00016709,2]
[350539479,1737954434371,-202.50220175,0.00016709,2]
[350539480,1737954434394,-212.37,0.00016845,2]
[350539481,1737954434414,-173.41135667,0.00016846,2]
[350539482,1737954434436,-261.118748,0.00019362,2]
[350539483,1737954434456,-200.0,0.00019634,2]
[350539484,1737954434476,-250.0,0.00019692,2]
[350539485,1737954434496,-587.950061,0.000199,8]
[350539486,1737954434518,-300.0,0.00019998,2]
[350539487,1737954434539,-500.0,0.00019999,2]
[350539488,1737954434560,-500.0,0.00019999,2]
[350539489,1737954434580,-500.0,0.00019999,2]
[350539490,1737954434600,-500.0,0.00019999,2]
[350539491,1737954434621,-500.0,0.00019999,2]
[350539492,1737954434641,-500.0,0.00019999,2]
[350539493,1737954434661,-500.0,0.00019999,2]
[350539494,1737954434681,-500.0,0.00019999,2]
[350539495,1737954434702,-500.0,0.00019999,2]
[350539496,1737954434723,-500.0,0.00019999,2]
[350539497,1737954434743,-500.0,0.00019999,2]
[350539498,1737954434764,-500.0,0.00019999,2]
[350539499,1737954434785,-500.0,0.00019999,2]
[350539500,1737954434804,-500.0,0.00019999,2]
[350539501,1737954434825,-500.0,0.00019999,2]
[350539502,1737954434849,-500.0,0.00019999,2]
[350539503,1737954434871,-589.53,0.00019999,2]
[350539504,1737954434895,-500.0,0.00019999,2]
[350539505,1737954434916,-501.02,0.00019999,2]
[350539506,1737954434938,-500.0,0.00019999,2]
[350539507,1737954434961,-500.0,0.00019999,2]
[350539508,1737954434982,-500.0,0.00019999,2]
[350539509,1737954435002,-500.0,0.00019999,2]
[350539510,1737954435024,-642.62,0.00019999,2]
[350539511,1737954435047,-500.0,0.00019999,2]
[350539512,1737954435071,-500.0,0.00019999,2]
[350539513,1737954435093,-500.0,0.00019999,2]
[350539514,1737954435114,-500.0,0.00019999,2]
[350539515,1737954435137,-500.0,0.00019999,2]
[350539516,1737954435160,-500.0,0.00019999,2]
[350539517,1737954435182,-500.0,0.00019999,2]
[350539518,1737954435348,-500.0,0.00019999,2]
[350539519,1737954435373,-500.0,0.00019999,2]
[350539520,1737954435395,-500.0,0.00019999,2]
[350539521,1737954435416,-500.0,0.00019999,2]
[350539522,1737954435438,-500.0,0.00019999,2]
[350539523,1737954435459,-500.0,0.00019999,2]
[350539524,1737954435481,-500.0,0.00019999,2]
[350539525,1737954435502,-458.9897779,0.00019999,2]
[350539526,1737954435526,-500.0,0.00019999,2]
[350539527,1737954435547,-839.31,0.0002,2]
[350539528,1737954435568,-6345.0,0.0002,2]
[350539529,1737954435588,-160.0,0.0002,3]
[350539530,1737954435608,-160.0,0.0002,3]
[350539531,1737954435629,-341.46,0.00020136,2]
[350539532,1737954435653,-500.0,0.00020136,2]
[350539533,1737954435674,-500.0,0.00020136,2]
[350539534,1737954435696,-500.0,0.00020136,2]
[350539535,1737954435720,-500.0,0.00020136,2]
[350539536,1737954435741,-500.0,0.00020136,2]
[350539537,1737954435765,-500.0,0.00020136,2]
[350539538,1737954435788,-118.50942384,0.00020136,2]
[350539539,1737954435828,-500.0,0.00019999,2]
[350539540,1737954435851,-40.3224408,0.00020136,2]
[350539557,1737954547135,-441.55297203,0.00019935,2]
[350539558,1737954547163,-500.0,0.00019999,2]
[350539559,1737954547190,-500.0,0.00019999,2]
[350539560,1737954547215,-500.0,0.00019999,2]
[350539561,1737954547241,-500.0,0.00019999,2]
[350539562,1737954547265,-387.94281789,0.00019999,2]
[350539563,1737954547288,-500.0,0.00019999,2]
[350539564,1737954547317,-500.0,0.00019999,2]
[350539565,1737954547343,-500.0,0.00019999,2]
[350539566,1737954547372,-500.0,0.00019999,2]
[350539567,1737954547395,-500.0,0.00019999,7]
[350539568,1737954547419,-500.0,0.00019999,2]
[350539569,1737954547445,-500.0,0.00019999,2]
[350539570,1737954547470,-500.0,0.00019999,2]
[350539571,1737954547496,-500.0,0.00019999,2]
[350539572,1737954547521,-500.0,0.00019999,2]
[350539573,1737954547546,-500.0,0.00019999,2]
[350539574,1737954547572,-500.0,0.00019999,2]
[350539575,1737954547598,-620.16167714,0.00019999,7]
[350539576,1737954547625,-500.0,0.00019999,2]
[350539577,1737954547653,-500.0,0.00019999,2]
[350539578,1737954547677,-500.0,0.00019999,2]
[350539579,1737954547700,-160.0,0.0002,3]
[350539580,1737954547722,-160.0,0.0002,3]
[350539581,1737954547747,-341.16813536,0.00020136,2]
[350539582,1737954547773,-500.0,0.00020136,2]
[350539583,1737954547800,-500.0,0.00020136,2]
[350539584,1737954547827,-500.0,0.00020136,2]
[350539585,1737954547856,-500.0,0.00020136,2]
[350539586,1737954547880,-500.0,0.00020136,2]
[350539587,1737954547906,-500.0,0.00020136,2]
[350539588,1737954547934,-500.0,0.00020136,2]
[350539589,1737954547962,-500.0,0.00020136,2]
[350539590,1737954547989,-500.0,0.00020136,2]
[350539591,1737954548015,-500.0,0.00020136,2]
[350539592,1737954548040,-500.0,0.00020136,2]
[350539593,1737954548066,-500.0,0.00020136,2]
[350539594,1737954548092,-500.0,0.00020136,2]
[350539595,1737954548119,-500.0,0.00020136,2]
[350539596,1737954548159,-500.0,0.00020136,2]
[350539597,1737954548200,-500.0,0.00020136,2]
[350539598,1737954548232,-500.0,0.00020136,2]
[350539599,1737954548261,-259.85,0.00020136,2]
[350539600,1737954548295,-500.0,0.00020273,2]
[350539601,1737954548324,-500.0,0.00020273,2]
[350539602,1737954548368,-500.0,0.00020273,2]
[350539603,1737954548399,-500.0,0.00020273,2]
[350539604,1737954548426,-500.0,0.00020273,2]
[350539605,1737954548452,-366.59688992,0.00020273,2]
[350539606,1737954550134,-500.0,0.00019999,2]
[350539607,1737954550156,-133.40311008,0.00020273,2]
[350539608,1737954550178,-515.82,0.00020273,2]
[350539609,1737954550200,-500.0,0.00020273,2]
[350539610,1737954550220,-561.71,0.00020273,2]
[350539611,1737954550242,-45.49513588,0.00020273,2]
[350539612,1737954551252,-454.50486412,0.00020273,2]
[350539613,1737954551275,-500.0,0.00020273,2]
[350539614,1737954551302,-500.0,0.00020273,2]
[350539615,1737954551324,-500.0,0.00020273,2]
[350539616,1737954551347,-500.0,0.00020273,2]
[350539617,1737954551373,-500.0,0.0002041,2]
[350539618,1737954551396,-500.0,0.0002041,2]
[350539619,1737954551419,-500.0,0.0002041,2]
[350539620,1737954551441,-500.0,0.0002041,2]
[350539621,1737954551462,-605.67,0.0002041,2]
[350539622,1737954551483,-198.88,0.0002041,2]
[350539623,1737954551505,-500.0,0.0002041,2]
[350539624,1737954551527,-500.0,0.0002041,2]
[350539625,1737954551548,-500.0,0.0002041,2]
[350539626,1737954551569,-500.0,0.0002041,2]
[350539627,1737954551591,-500.0,0.0002041,2]
[350539628,1737954551614,-500.0,0.0002041,2]
[350539629,1737954551634,-351.90621897,0.00020417,2]
[350539630,1737954551654,-340.448068,0.00020447,2]
[350539631,1737954551676,-533.91553972,0.00020547,2]
[350539632,1737954551698,-500.0,0.00020547,2]
[350539633,1737954551721,-500.0,0.00020547,2]
[350539634,1737954551744,-500.0,0.00020547,2]
[350539635,1737954551766,-500.0,0.00020547,2]
[350539636,1737954551788,-500.0,0.00020547,2]
[350539637,1737954551809,-500.0,0.00020547,2]